bitfinex-derivatives/quotes_BTCF0:USTF0_20251120
["timestamp","ask_amount","ask_price","bid_price","bid_amount"]
[1763653286013,0.40272207,90447.0,90446.0,0.09182444]
[1763653286204,0.45117207,90447.0,90446.0,0.00347444]
[1763653286406,0.45117207,90447.0,90446.0,0.00127641]
[1763653286611,0.45117207,90447.0,90446.0,0.00227641]
[1763653286804,0.46223957,90447.0,90446.0,0.00227641]
[1763653287212,0.45117207,90447.0,90446.0,0.01554214]
[1763653287515,0.09037207,90447.0,90446.0,0.05684214]
[1763653288118,0.09037207,90447.0,90446.0,0.00447444]
[1763653288614,0.09037207,90447.0,90446.0,0.00227641]
[1763653290013,0.09037207,90447.0,90446.0,0.01554214]
[1763653291411,0.09037207,90447.0,90446.0,0.05684214]
[1763653291716,0.09037207,90447.0,90446.0,0.01554214]
[1763653292723,0.07694207,90447.0,90446.0,0.09470214]
[1763653292908,0.00011207,90447.0,90446.0,0.09470214]
[1763653293103,0.00011207,90447.0,90446.0,0.45550214]
[1763653293311,0.00016578,90456.0,90455.0,0.0875266]
[1763653293504,0.00016578,90456.0,90455.0,0.08972463]
[1763653294214,8e-08,90456.0,90455.0,0.08972463]
[1763653294518,0.3608,90478.0,90477.0,0.0110639]
[1763653294519,0.43763,90478.0,90477.0,0.0110639]
[1763653294814,0.43763,90478.0,90477.0,0.01326193]
[1763653295117,0.52435905,90478.0,90477.0,0.01326193]
[1763653295513,0.52435905,90478.0,90477.0,0.00219803]
[1763653295713,0.07683,90469.0,90468.0,0.01123078]
[1763653295911,0.07683,90469.0,90468.0,0.01342881]
[1763653296308,0.43763,90469.0,90468.0,0.00236381]
[1763653296722,0.43763,90469.0,90468.0,0.00016578]
[1763653296912,0.07683,90459.0,90458.0,0.0110661]
[1763653297119,0.07683,90459.0,90458.0,0.01326413]
[1763653297612,0.07683,90459.0,90458.0,0.00219803]
[1763653298208,0.00016578,90468.0,90467.0,0.07646]
[1763653298512,0.00016578,90468.0,90467.0,0.07865803]
[1763653298820,0.07699578,90468.0,90467.0,0.00219803]
[1763653299617,0.07699578,90468.0,90467.0,0.03993803]
[1763653301710,0.07699578,90468.0,90467.0,0.00219803]
[1763653302116,0.10111578,90468.0,90467.0,0.00219803]
[1763653302708,0.10111578,90468.0,90467.0,0.03993803]
[1763653303517,0.10111578,90468.0,90467.0,0.00219803]
[1763653307823,0.00016578,90468.0,90467.0,0.07865803]
[1763653308715,0.10111578,90468.0,90467.0,0.00219803]
[1763653309431,0.0878975,90447.0,90446.0,0.00027641]
[1763653309724,0.43763,90447.0,90446.0,0.00247444]
[1763653312117,0.43763,90447.0,90446.0,0.07893444]
[1763653312312,0.10095,90456.0,90455.0,0.0110666]
[1763653312516,0.10095,90456.0,90455.0,0.00219803]
[1763653314318,0.03711,90459.0,90458.0,0.07646]
[1763653314523,0.10111578,90468.0,90467.0,0.0110651]
[1763653314724,0.10111578,90468.0,90467.0,0.01326313]
[1763653315125,0.10111578,90468.0,90467.0,0.07865803]
[1763653315428,0.00016578,90468.0,90467.0,0.07865803]
[1763653315924,0.10111578,90468.0,90467.0,0.00219803]
[1763653316133,0.46191578,90468.0,90467.0,0.00219803]
[1763653316732,0.47298078,90468.0,90467.0,0.00219803]
[1763653317930,0.46191578,90468.0,90467.0,0.00219803]
[1763653318127,0.03727578,90468.0,90467.0,0.07865803]
[1763653318332,0.10111578,90468.0,90467.0,0.00219803]
[1763653319428,0.00016578,90468.0,90467.0,0.07865803]
[1763653320128,0.0110632,90483.0,90482.0,0.0110629]
[1763653320435,0.0878932,90483.0,90482.0,0.00219803]
[1763653321233,0.07683,90483.0,90482.0,0.07865803]
[1763653321423,0.02428578,90492.0,90485.0,0.03774]
[1763653321626,0.03711,90486.0,90485.0,0.00219803]
[1763653321831,0.00016578,90492.0,90491.0,0.0875222]
[1763653322134,0.07699578,90492.0,90491.0,0.01326023]
[1763653322737,0.07699578,90492.0,90491.0,0.00219803]
[1763653324034,0.00016578,90492.0,90491.0,0.07565803]
[1763653324626,0.00016578,90492.0,90491.0,0.43645803]
[1763653325224,0.03651,90504.0,90503.0,0.0845207]
[1763653325427,0.38492,90516.0,90509.0,0.08452]
[1763653325630,0.38492,90516.0,90509.0,0.08671803]
[1763653325823,0.43536,90510.0,90509.0,0.01325803]
[1763653326034,0.4464198,90510.0,90509.0,0.00219803]
[1763653326332,0.43536,90510.0,90509.0,0.00219803]
[1763653326531,0.39731,90510.0,90509.0,0.08671803]
[1763653327030,0.43536,90510.0,90509.0,0.08671803]
[1763653327446,0.03651,90516.0,90515.0,0.0845192]
[1763653327651,0.00016578,90519.0,90518.0,0.0845189]
[1763653327936,0.00016578,90519.0,90518.0,0.08671693]
[1763653329737,0.10664458,90519.0,90518.0,0.00219803]
[1763653330436,0.00027617,90526.0,90525.0,0.084518]
[1763653330741,0.07456,90541.0,90540.0,0.0110561]
[1763653330929,0.07456,90541.0,90540.0,0.00219803]
[1763653331842,0.07456,90541.0,90531.0,0.00016569]
[1763653331843,0.09542,90532.0,90531.0,0.00016569]
[1763653332144,0.45622,90532.0,90531.0,0.00236372]
[1763653335635,0.4672772,90532.0,90531.0,0.00236372]
[1763653336142,0.45622,90532.0,90531.0,0.01342102]
[1763653336438,0.07456,90542.0,90541.0,0.011056]
[1763653336739,0.07456,90542.0,90541.0,0.01325403]
[1763653336941,0.07456,90542.0,90541.0,0.00219803]
[1763653337148,0.3608,90543.0,90531.0,0.00016569]
[1763653337149,0.09542,90532.0,90531.0,0.00016569]
[1763653337330,0.09542,90532.0,90531.0,0.00236372]
[1763653340240,0.09542,90532.0,90531.0,0.00016569]
[1763653340445,0.07456,90511.0,90510.0,0.0110599]
[1763653340745,0.07456,90511.0,90510.0,0.01325793]
[1763653340946,0.07456,90511.0,90510.0,0.08671793]
[1763653341148,0.3608,90520.0,90515.0,0.0845192]
[1763653341338,0.43536,90520.0,90519.0,0.04958683]
[1763653341541,0.43536,90520.0,90519.0,0.01325683]
[1763653341746,0.43536,90520.0,90519.0,0.00219803]
[1763653342463,0.07456,90509.0,90508.0,0.00016569]
[1763653342747,0.08562,90509.0,90508.0,0.00236372]
[1763653343052,0.08562,90509.0,90508.0,0.00016569]
[1763653343654,0.07456,90509.0,90508.0,0.00016569]
[1763653344641,0.07456,90487.0,90486.0,0.36107629]
[1763653344846,0.07456,90487.0,90486.0,0.37433712]
[1763653345055,0.05737,90493.0,90492.0,0.0110621]
[1763653345349,0.05737,90493.0,90492.0,0.01326013]
[1763653345350,0.09542,90493.0,90492.0,0.01326013]
[1763653346350,0.3608,90501.0,90500.0,0.0845211]
[1763653346650,0.43536,90501.0,90500.0,0.04958913]
[1763653346845,0.43536,90501.0,90500.0,0.00219803]
[1763653347446,0.07456,90487.0,90486.0,0.01133899]
[1763653347647,0.07456,90487.0,90486.0,0.01353702]
[1763653348355,0.07456,90487.0,90486.0,0.08699702]
[1763653350456,0.07456,90487.0,90486.0,0.00247432]
[1763653350848,0.42684,90501.0,90500.0,0.0110611]
[1763653351149,0.06604,90501.0,90500.0,0.01325913]
[1763653351355,0.06604,90501.0,90500.0,0.07819913]
[1763653351658,0.06620569,90502.0,90501.0,0.06494]
[1763653351850,0.06620569,90502.0,90501.0,0.01325903]
[1763653352047,0.06620569,90502.0,90501.0,0.00219803]
[1763653352242,0.06620569,90502.0,90483.0,0.00016569]
[1763653352243,0.06512,90487.0,90483.0,0.00016569]
[1763653352554,0.0753249,90469.0,90468.0,8.768e-05]
[1763653352856,0.42506,90469.0,90468.0,0.00228571]
[1763653353455,0.06426,90447.0,90438.0,0.3608]
[1763653353651,0.06426,90447.0,90446.0,0.01354214]
[1763653353956,0.06426,90447.0,90446.0,0.00247444]
[1763653354455,0.06434433,90447.0,90446.0,0.00247444]
[1763653354848,0.06434433,90447.0,90446.0,0.00447444]
[1763653356446,0.06434433,90447.0,90446.0,0.00227641]
[1763653356851,0.06434433,90447.0,90446.0,0.00027641]
[1763653357561,0.06434433,90447.0,90446.0,0.00247444]
[1763653357855,0.03192433,90447.0,90446.0,0.06516444]
[1763653358064,8.433e-05,90447.0,90446.0,0.46516444]
[1763653358552,8.433e-05,90447.0,90446.0,0.06516444]
[1763653358752,0.06434433,90447.0,90446.0,0.06516444]
[1763653359058,0.06434433,90447.0,90446.0,0.00247444]
[1763653360455,0.03192433,90447.0,90446.0,0.06516444]
[1763653361359,8.433e-05,90447.0,90446.0,0.06516444]
[1763653362366,0.06434433,90447.0,90446.0,0.06516444]
[1763653363454,8.433e-05,90447.0,90446.0,0.06516444]
[1763653364970,0.00016578,90456.0,90455.0,0.0737566]
[1763653365168,0.00016578,90456.0,90455.0,0.07595463]
[1763653365668,0.42506,90477.0,90476.0,0.011064]
[1763653365866,0.42506,90477.0,90476.0,0.07595203]
[1763653366167,0.42506,90477.0,90476.0,0.01326203]
[1763653366560,0.06426,90477.0,90476.0,0.01326203]
[1763653366755,0.06442578,90486.0,90485.0,0.0110629]
[1763653366962,0.00016578,90486.0,90485.0,0.07595093]
[1763653367961,0.06442578,90486.0,90485.0,0.10971803]
[1763653369568,0.06442578,90486.0,90485.0,0.14096803]
[1763653371072,0.03200578,90486.0,90485.0,0.17240803]
[1763653372372,0.03200578,90486.0,90485.0,0.14096803]
[1763653372373,0.06442578,90486.0,90485.0,0.14096803]
[1763653373063,0.06442578,90486.0,90485.0,0.10971803]
[1763653374673,0.06442578,90486.0,90485.0,0.17240803]
[1763653374964,0.00016578,90486.0,90485.0,0.17240803]
[1763653375759,0.3608,90497.0,90496.0,0.0110616]
[1763653375973,0.42506,90497.0,90496.0,0.01325963]
[1763653376265,0.42506,90497.0,90496.0,0.00219803]
[1763653378771,0.42606,90497.0,90496.0,0.00219803]
[1763653379174,0.44421,90497.0,90496.0,0.00219803]
[1763653379764,0.44421,90497.0,90496.0,0.06488803]
[1763653379974,0.08341,90497.0,90496.0,0.06488803]
[1763653380374,0.08341,90497.0,90496.0,0.03344803]
[1763653380564,0.08341,90497.0,90496.0,0.00219803]
[1763653380966,0.001,90497.0,90496.0,0.06488803]
[1763653381171,0.001,90497.0,90496.0,0.00219803]
[1763653381172,0.08341,90497.0,90496.0,0.00219803]
[1763653381372,0.08341,90497.0,90496.0,0.03344803]
[1763653381572,0.08341,90497.0,90496.0,0.00219803]
[1763653382272,0.08341,90497.0,90496.0,0.06488803]
[1763653382573,0.00016578,90506.0,90505.0,0.0582]
[1763653382767,0.36107617,90526.0,90505.0,0.0582]
[1763653382768,0.36107617,90526.0,90525.0,0.069258]
[1763653383077,0.00027617,90526.0,90525.0,0.07145603]
[1763653383276,0.3608,90545.0,90540.0,0.0110562]
[1763653383277,0.07704,90541.0,90540.0,0.0110562]
[1763653383471,0.07704,90541.0,90540.0,0.06039803]
[1763653383663,0.3608,90545.0,90544.0,0.0582]
[1763653383875,0.00016569,90550.0,90549.0,0.0692551]
[1763653384070,0.00016569,90550.0,90549.0,0.06039803]
[1763653384974,0.02793569,90550.0,90549.0,0.06039803]
[1763653385282,0.00016569,90550.0,90549.0,0.06039803]
[1763653385966,0.3608,90554.0,90553.0,0.0582]
[1763653386162,0.02804604,90566.0,90565.0,0.0582]
[1763653386379,0.02804604,90566.0,90565.0,0.06039803]
[1763653386672,0.05957604,90566.0,90565.0,0.00219803]
[1763653387366,0.05957604,90566.0,90565.0,0.02987803]
[1763653387567,0.00027604,90566.0,90565.0,0.06039803]
[1763653388473,0.00016569,90575.0,90574.0,0.0692521]
[1763653388668,0.05946569,90575.0,90574.0,0.10967803]
[1763653389072,0.05946569,90575.0,90574.0,0.00219803]
[1763653391884,0.0593,90557.0,90556.0,0.01121989]
[1763653392177,0.0593,90557.0,90556.0,0.12085792]
[1763653392380,0.0593,90557.0,90556.0,0.00016569]
[1763653392572,0.0593,90557.0,90556.0,0.02987803]
[1763653393571,0.3608,90561.0,90560.0,0.0692538]
[1763653393775,0.4201,90561.0,90560.0,0.02987803]
[1763653393982,0.4201,90561.0,90560.0,0.00219803]
[1763653395178,0.4201,90561.0,90560.0,0.07145183]
[1763653395675,0.4201,90561.0,90560.0,0.00219803]
[1763653396080,0.4201,90561.0,90560.0,0.01325183]
[1763653396274,0.4201,90561.0,90560.0,0.00219803]
[1763653397488,0.4201,90561.0,90550.0,0.54427658]
[1763653397684,0.0593,90548.0,90547.0,0.00016569]
[1763653397877,0.0593,90548.0,90547.0,0.00236372]
[1763653398081,0.0593,90548.0,90547.0,0.10980372]
[1763653398482,0.00016569,90557.0,90556.0,0.02768]
[1763653398683,0.02793569,90557.0,90556.0,0.02987803]
[1763653398886,0.05946569,90557.0,90556.0,0.02987803]
[1763653399087,0.05946569,90557.0,90556.0,0.00219803]
[1763653399491,0.02793569,90557.0,90556.0,0.07145223]
[1763653399692,0.00016569,90557.0,90556.0,0.07145223]
[1763653399880,0.02793569,90557.0,90556.0,0.07145223]
[1763653400191,0.05946569,90557.0,90556.0,0.04093223]
[1763653400386,0.05946569,90557.0,90556.0,0.01325223]
[1763653400590,0.00016569,90557.0,90556.0,0.07145223]
[1763653401489,0.070351,90583.0,90582.0,0.011051]
[1763653401692,0.0593,90583.0,90582.0,0.01324903]
[1763653401992,0.0593,90583.0,90582.0,0.04092903]
[1763653402395,0.0593,90583.0,90582.0,0.01324903]
[1763653402787,0.0593,90583.0,90582.0,0.00219803]
[1763653403699,0.0593,90574.0,90573.0,0.00016559]
[1763653403892,0.0593,90574.0,90573.0,0.01341572]
[1763653404088,0.0593,90574.0,90573.0,0.07161572]
[1763653404281,0.01774,90584.0,90583.0,0.011051]
[1763653404484,0.07704,90584.0,90583.0,0.01324903]
[1763653404893,0.0880908,90584.0,90583.0,0.00219803]
[1763653405193,0.07704,90584.0,90583.0,0.00219803]
[1763653405391,0.02777,90584.0,90583.0,0.06039803]
[1763653405681,0.38857,90587.0,90586.0,0.0582]
[1763653405889,0.4201,90587.0,90586.0,0.00219803]
[1763653406395,0.4201,90587.0,90586.0,0.02987803]
[1763653406791,0.4311505,90587.0,90586.0,0.00219803]
[1763653406992,0.38857,90587.0,90586.0,0.06039803]
[1763653407693,0.0593,90587.0,90586.0,0.02987803]
[1763653407890,0.0593,90587.0,90586.0,0.06039803]
[1763653408091,0.0593,90587.0,90586.0,0.00219803]
[1763653408393,0.0593,90587.0,90586.0,0.02987803]
[1763653409101,0.0593,90587.0,90586.0,0.00219803]
[1763653412598,0.0593,90587.0,90586.0,0.05481803]
[1763653412995,0.00016559,90592.0,90591.0,0.01105]
[1763653413200,0.05077559,90592.0,90591.0,0.01324803]
[1763653413992,0.05077559,90592.0,90591.0,0.03927803]
[1763653414199,0.05077559,90592.0,90591.0,0.06503803]
[1763653414701,0.02517559,90592.0,90591.0,0.06503803]
[1763653414900,0.01774,90597.0,90596.0,0.0629794]
[1763653415101,0.06835,90597.0,90596.0,0.17253743]
[1763653415304,0.06835,90597.0,90596.0,0.10955803]
[1763653415499,0.06835,90597.0,90596.0,0.00219803]
[1763653416191,0.04275,90597.0,90596.0,0.05412803]
[1763653416403,0.02601,90597.0,90596.0,0.05412803]
[1763653416597,0.05161,90597.0,90596.0,0.05412803]
[1763653416803,0.001,90597.0,90596.0,0.06928803]
[1763653416993,0.00044151,90606.0,90605.0,0.0629783]
[1763653417304,0.41141,90620.0,90619.0,0.0110466]
[1763653417599,0.41141,90620.0,90619.0,0.12060463]
[1763653417800,0.41141,90620.0,90619.0,0.14677463]
[1763653418604,0.01593919,90629.0,90619.0,0.14677463]
[1763653418605,0.06654919,90629.0,90628.0,0.0110455]
[1763653418805,0.06654919,90629.0,90628.0,0.00219803]
[1763653419101,0.06654919,90629.0,90628.0,0.03941353]
[1763653419495,0.02511919,90629.0,90628.0,0.06517353]
[1763653419796,0.00010919,90629.0,90628.0,0.06517353]
[1763653420004,0.00110919,90629.0,90628.0,0.06517353]
[1763653420295,0.05171919,90629.0,90628.0,0.03941353]
[1763653420496,0.05171919,90629.0,90628.0,0.14677353]
[1763653420696,0.05171919,90629.0,90628.0,0.10955803]
[1763653420896,0.05171919,90629.0,90628.0,0.00219803]
[1763653421094,0.05171919,90629.0,90628.0,0.10955803]
[1763653421295,0.05271919,90629.0,90628.0,0.00219803]
[1763653422299,0.06854919,90629.0,90628.0,0.00219803]
[1763653422897,0.07959449,90629.0,90628.0,0.00219803]
[1763653423496,0.0616568,90617.0,90612.0,0.0110473]
[1763653423795,0.01583,90618.0,90610.0,0.01121329]
[1763653423796,0.05061,90611.0,90610.0,0.01121329]
[1763653423996,0.05061,90611.0,90610.0,0.01341132]
[1763653424197,0.05061,90611.0,90610.0,0.12073132]
[1763653424400,0.05061,90611.0,90610.0,0.00236362]
[1763653425207,0.05061,90611.0,90610.0,0.01341132]
[1763653425507,0.05061,90611.0,90610.0,0.00236362]
[1763653426099,0.05061,90604.0,90603.0,0.1183685]
[1763653426303,0.05061,90604.0,90603.0,0.53329653]
[1763653426497,0.06644,90618.0,90617.0,0.0110468]
[1763653426700,0.06644,90618.0,90617.0,0.01324483]
[1763653427899,0.0774867,90618.0,90617.0,0.00219803]
[1763653428503,0.05061,90609.0,90608.0,0.00016559]
[1763653428710,0.05061,90609.0,90608.0,0.00236362]
[1763653430708,0.0256,90591.0,90586.0,0.38697]
[1763653430910,0.05061,90589.0,90588.0,0.00219803]
[1763653431609,0.0616602,90589.0,90588.0,0.00219803]
[1763653432215,0.07261646,90589.0,90588.0,0.00319803]
[1763653432527,0.06156626,90589.0,90588.0,0.00319803]
[1763653432701,0.05061,90589.0,90588.0,0.00319803]
[1763653432907,0.05061,90589.0,90588.0,0.00419803]
[1763653435708,0.05061,90589.0,90588.0,0.05612803]
[1763653435912,0.0490815,90589.0,90588.0,0.05612803]
[1763653436510,0.0490815,90589.0,90588.0,0.00419803]
[1763653436713,0.0601317,90589.0,90588.0,0.00419803]
[1763653437609,0.0490815,90589.0,90588.0,0.00419803]
[1763653439020,0.02501,90589.0,90588.0,0.05612803]
[1763653439409,0.05061,90589.0,90588.0,0.05612803]
[1763653440416,0.05061,90589.0,90588.0,0.03036803]
[1763653440810,0.05061,90589.0,90588.0,0.05612803]
[1763653441312,0.00016559,90598.0,90597.0,0.05193]
[1763653441512,0.01583,90629.0,90607.0,0.01516]
[1763653441815,0.41141,90631.0,90630.0,0.05193]
[1763653442016,0.41141,90631.0,90630.0,0.00219803]
[1763653442514,0.41141,90631.0,90630.0,0.05476803]
[1763653442515,0.05061,90631.0,90630.0,0.05476803]
[1763653442917,0.04975559,90640.0,90639.0,0.0636141]
[1763653443117,0.00016559,90640.0,90639.0,0.06581213]
[1763653443617,0.0002758,90646.0,90645.0,0.0636134]
[1763653443823,0.01117413,90674.0,90658.0,0.0110418]
[1763653444125,0.41039,90659.0,90658.0,0.01323983]
[1763653444914,0.41039,90659.0,90658.0,0.00219803]
[1763653445424,0.41139,90659.0,90658.0,0.00219803]
[1763653445920,0.41139,90659.0,90658.0,0.05476803]
[1763653445921,0.38632,90659.0,90658.0,0.05476803]
[1763653446120,0.3618,90659.0,90658.0,0.05476803]
[1763653446627,0.41239,90659.0,90658.0,0.05476803]
[1763653446929,0.41239,90659.0,90658.0,0.02785803]
[1763653447317,0.41139,90659.0,90658.0,0.02785803]
[1763653447616,0.41039,90659.0,90658.0,0.10947803]
[1763653448117,0.4214317,90659.0,90658.0,0.10947803]
[1763653448330,0.4214317,90659.0,90658.0,0.00219803]
[1763653448625,0.41039,90659.0,90658.0,0.00219803]
[1763653449320,0.04959,90650.0,90649.0,0.0001655]
[1763653449516,0.05178803,90650.0,90649.0,0.00089547]
[1763653450331,0.00219803,90650.0,90649.0,0.05346547]
[1763653450625,0.05178803,90650.0,90649.0,0.00089547]
[1763653451219,0.41258803,90650.0,90649.0,0.00089547]
[1763653452131,0.41258803,90650.0,90649.0,0.0001655]
[1763653452330,0.0606337,90643.0,90642.0,0.10728]
[1763653452537,0.06283173,90643.0,90642.0,0.10800997]
[1763653452823,0.06283173,90643.0,90642.0,0.00072997]
[1763653453227,0.05178803,90643.0,90642.0,0.00072997]
[1763653453526,0.04959,90638.0,90637.0,0.3718443]
[1763653453719,0.02671803,90638.0,90637.0,0.53242427]
[1763653454122,0.00219803,90638.0,90637.0,0.53242427]
[1763653454323,0.0497555,90647.0,90646.0,0.0636133]
[1763653454532,0.05195353,90647.0,90646.0,0.06434327]
[1763653454724,0.06299673,90647.0,90646.0,0.00072997]
[1763653456533,0.04959,90634.0,90633.0,0.0112104]
[1763653456731,0.04978426,90634.0,90633.0,0.11918037]
[1763653456931,0.04978426,90634.0,90633.0,0.00089547]
[1763653457336,0.04978426,90634.0,90633.0,0.01194037]
[1763653458230,0.04978426,90634.0,90633.0,0.00089547]
[1763653458430,0.04978426,90634.0,90633.0,0.0001655]
[1763653458932,0.04978426,90634.0,90633.0,0.00089547]
[1763653459931,0.04978426,90634.0,90633.0,0.05346547]
[1763653461035,0.3609655,90647.0,90633.0,0.05346547]
[1763653461339,0.3609655,90647.0,90646.0,0.0110433]
[1763653461340,0.4105555,90647.0,90646.0,0.0110433]
[1763653461537,0.41275353,90647.0,90646.0,0.01177327]
[1763653462435,0.41275353,90647.0,90646.0,0.00072997]
[1763653463441,0.41275353,90647.0,90646.0,0.02638997]
[1763653463629,0.41275353,90647.0,90646.0,0.00072997]
[1763653465239,0.38623094,90647.0,90646.0,0.00072997]
[1763653467237,0.33664094,90647.0,90640.0,0.10724]
[1763653467436,0.04959,90634.0,90633.0,0.0112104]
[1763653467643,0.06283273,90634.0,90633.0,0.0001655]
[1763653468438,0.05178803,90634.0,90633.0,0.0258255]
[1763653468744,0.05178803,90634.0,90633.0,0.0527355]
[1763653468745,0.00219803,90634.0,90633.0,0.0527355]
[1763653468934,0.33444291,90647.0,90634.0,0.0110447]
[1763653469135,0.05178803,90646.0,90645.0,0.0367034]
[1763653470144,0.05178803,90646.0,90645.0,0.0636134]
[1763653470338,0.05178803,90646.0,90645.0,0.02566]
[1763653470744,0.05178803,90646.0,90645.0,0.0110434]
[1763653471138,0.06283133,90646.0,90645.0,0.0110434]
[1763653471647,0.05178803,90646.0,90645.0,0.0366534]
[1763653471848,0.05178803,90646.0,90645.0,0.0603634]
[1763653473149,0.02526759,90646.0,90645.0,0.06256143]
[1763653473340,0.05055887,90656.0,90655.0,0.0110422]
[1763653473542,0.05129154,90656.0,90655.0,0.01324023]
[1763653473943,0.07624777,90656.0,90655.0,0.01324023]
[1763653474546,0.05129154,90656.0,90655.0,0.06171023]
[1763653475053,0.05129154,90656.0,90655.0,0.00219803]
[1763653475442,0.05129154,90656.0,90655.0,0.02647803]
[1763653476243,0.05229154,90656.0,90655.0,0.02647803]
[1763653476650,0.06333364,90656.0,90655.0,0.02647803]
[1763653476846,0.05229154,90656.0,90655.0,0.02647803]
[1763653478146,0.05229154,90656.0,90655.0,0.03752023]
[1763653478347,0.02682154,90656.0,90655.0,0.06171023]
[1763653478543,0.00110887,90656.0,90655.0,0.06171023]
[1763653479650,0.0614902,90672.0,90671.0,0.0110402]
[1763653479853,0.08718829,90672.0,90671.0,0.00219803]
[1763653480752,0.08818829,90672.0,90671.0,0.00219803]
[1763653482346,0.07714809,90672.0,90671.0,0.02647803]
[1763653482556,0.07714809,90672.0,90671.0,0.05066803]
[1763653482747,0.07814809,90672.0,90671.0,0.05066803]
[1763653483250,0.05318267,90672.0,90671.0,0.05066803]
[1763653483644,0.05318267,90672.0,90671.0,0.02647803]
[1763653484047,0.0781302,90672.0,90671.0,0.00219803]
[1763653484241,0.0781302,90672.0,90671.0,0.01323823]
[1763653484457,0.05318267,90672.0,90671.0,0.01323823]
[1763653484652,0.0781216,90672.0,90671.0,0.01323823]
[1763653484954,0.05318267,90672.0,90671.0,0.01323823]
[1763653486256,0.05318267,90672.0,90671.0,0.06170823]
[1763653487847,0.05318267,90672.0,90671.0,0.05066803]
[1763653488049,0.06422277,90672.0,90671.0,0.00219803]
[1763653490454,0.06422277,90672.0,90671.0,0.01323823]
[1763653491254,0.06422277,90672.0,90671.0,0.00219803]
[1763653492061,0.08914635,90672.0,90671.0,0.00219803]
[1763653492261,0.08914635,90672.0,90671.0,0.01323823]
[1763653492567,0.08914635,90672.0,90671.0,0.00219803]
[1763653492864,0.0614912,90663.0,90662.0,0.0001655]
[1763653493049,0.0614912,90663.0,90662.0,0.00236353]
[1763653493050,0.42302387,90663.0,90662.0,0.00236353]
[1763653493754,0.41198267,90663.0,90662.0,0.00236353]
[1763653494463,0.41298267,90663.0,90662.0,0.00236353]
[1763653495068,0.41398267,90663.0,90662.0,0.00236353]
[1763653495356,0.41398267,90663.0,90662.0,0.05083353]
[1763653496167,0.41398267,90663.0,90662.0,0.00236353]
[1763653497168,0.0110429,90651.0,90650.0,0.0110425]
[1763653497466,0.05118267,90651.0,90650.0,0.05066803]
[1763653498064,0.05118267,90651.0,90650.0,0.00219803]
[1763653498255,0.05118267,90651.0,90650.0,0.05066803]
[1763653500464,0.0001655,90660.0,90650.0,0.05066803]
[1763653500465,0.0001655,90660.0,90659.0,0.0595117]
[1763653500670,0.0001655,90660.0,90659.0,0.06170973]
[1763653500973,0.05134817,90660.0,90659.0,0.02647803]
[1763653501162,0.05045,90656.0,90655.0,0.3608]
[1763653501468,0.0614938,90642.0,90632.0,0.07927941]
[1763653501667,0.0614953,90629.0,90628.0,0.3608]
[1763653501865,0.0614969,90616.0,90615.0,0.3608]
[1763653502074,0.05045,90608.0,90607.0,0.3608]
[1763653502259,0.05118267,90608.0,90607.0,0.36299803]
[1763653502460,0.00073267,90608.0,90607.0,0.41245803]
[1763653502856,0.02364267,90608.0,90607.0,0.41245803]
[1763653503257,0.02364267,90608.0,90607.0,0.05165803]
[1763653503258,0.04820267,90608.0,90607.0,0.05165803]
[1763653503468,0.04820267,90608.0,90607.0,0.00219803]
[1763653503666,0.04747,90604.0,90603.0,8.082e-05]
[1763653503973,0.04747,90599.0,90598.0,0.0001655]
[1763653504164,0.40900267,90599.0,90598.0,0.0001655]
[1763653504365,0.36153267,90599.0,90594.0,0.0110495]
[1763653504570,0.04747,90595.0,90594.0,0.0110495]
[1763653504764,0.04747,90595.0,90594.0,0.06092753]
[1763653504765,0.04820267,90595.0,90594.0,0.06092753]
[1763653504960,0.04831578,90595.0,90594.0,0.06092753]
[1763653505268,0.04831578,90595.0,90594.0,0.01324753]
[1763653505672,0.04831578,90595.0,90594.0,0.01424753]
[1763653505869,0.00084578,90595.0,90594.0,0.06192753]
[1763653506068,0.00084578,90595.0,90594.0,0.17012753]
[1763653506069,0.00011311,90595.0,90594.0,0.17012753]
[1763653506377,0.0001655,90604.0,90603.0,0.0587285]
[1763653506566,0.04836817,90604.0,90603.0,0.06092653]
[1763653507074,0.05941657,90604.0,90603.0,0.00219803]
[1763653507260,0.04836817,90604.0,90603.0,0.00219803]
[1763653507466,0.04747,90596.0,90595.0,0.3718495]
[1763653507761,0.04747,90596.0,90595.0,0.37404753]
[1763653507762,0.04820267,90596.0,90595.0,0.37404753]
[1763653507965,0.04820267,90596.0,90595.0,0.42172753]
[1763653508367,0.05925207,90596.0,90595.0,0.00219803]
[1763653508674,0.0585206,90586.0,90585.0,0.0001655]
[1763653508979,0.40900267,90586.0,90585.0,0.0001655]
[1763653509167,0.40900267,90586.0,90585.0,0.00236353]
[1763653509366,0.40900267,90586.0,90585.0,0.0001655]
[1763653509873,0.40900267,90586.0,90585.0,0.0011655]
[1763653510070,0.40900267,90586.0,90585.0,0.00336353]
[1763653510666,0.42005327,90586.0,90585.0,0.0011655]
[1763653511068,0.02291,90567.0,90566.0,0.01132904]
[1763653511282,0.02364267,90567.0,90566.0,0.06120707]
[1763653511668,0.04820267,90567.0,90566.0,0.03602707]
[1763653511971,0.00073267,90567.0,90566.0,0.06120707]
[1763653512172,0.40827,90578.0,90577.0,0.0110517]
[1763653512377,0.04747,90574.0,90573.0,0.0110522]
[1763653512575,0.04820267,90574.0,90573.0,0.01325023]
[1763653512971,0.04820267,90574.0,90573.0,0.03575023]
[1763653513173,0.00073267,90574.0,90573.0,0.06093023]
[1763653513371,0.40827,90586.0,90585.0,0.0110507]
[1763653513575,0.40827,90586.0,90585.0,0.06092873]
[1763653513576,0.40900267,90586.0,90585.0,0.06092873]
[1763653514076,0.40900267,90586.0,90585.0,0.00219803]
[1763653514276,0.40900267,90586.0,90585.0,0.04987803]
[1763653514677,0.0001656,90587.0,90586.0,0.0587306]
[1763653514881,0.0001656,90587.0,90586.0,0.06092863]
[1763653515176,0.0001656,90587.0,90586.0,0.16812863]
[1763653515478,0.3608,90607.0,90606.0,0.0587282]
[1763653515675,0.36153267,90607.0,90606.0,0.06092623]
[1763653515878,0.00073267,90607.0,90606.0,0.06092623]
[1763653516279,0.04820267,90607.0,90606.0,0.06092623]
[1763653516474,0.04820267,90607.0,90597.0,0.0001656]
[1763653516475,0.0585191,90598.0,90597.0,0.0001656]
[1763653516678,0.05925177,90598.0,90597.0,0.00236363]
[1763653516879,0.42005177,90598.0,90597.0,0.00236363]
[1763653517174,0.42005177,90598.0,90597.0,0.0001656]
[1763653517676,0.42005177,90598.0,90597.0,0.03855363]
[1763653517677,0.40900267,90598.0,90597.0,0.03855363]
[1763653517877,0.40900267,90598.0,90597.0,0.06373363]
[1763653518081,0.40900267,90598.0,90597.0,0.00236363]
[1763653518479,0.00073267,90598.0,90597.0,0.06473363]
[1763653518680,0.00073267,90598.0,90597.0,0.06573363]
[1763653518985,0.02364267,90598.0,90597.0,0.06573363]